fUSD/lending_fUSD_20260401
["ID","MTS","AMOUNT","RATE_DAILY","PERIOD"]
[419207818,1775017960666,3277.23,7.608e-05,2]
[419207819,1775017960704,3277.23,7.846e-05,2]
[419207820,1775017960748,3277.23,8.084e-05,2]
[419207821,1775017960837,3277.23,8.321e-05,2]
[419207822,1775017961030,3277.23,8.559e-05,2]
[419207823,1775017976380,-420.0,8.739e-05,2]
[419207824,1775017976405,-9679.0,8.74e-05,2]
[419207825,1775018011315,-150.0,8.739e-05,2]
[419207826,1775018011338,-500.0,8.739e-05,2]
[419207827,1775018011359,-506.039254,8.739e-05,2]
[419207828,1775018011381,-275.0,8.739e-05,2]
[419207829,1775018011407,-500.0,8.739e-05,2]
[419207830,1775018011434,-500.0,8.739e-05,2]
[419207831,1775018011459,-500.0,8.739e-05,2]
[419207832,1775018011486,-500.0,8.739e-05,2]
[419207833,1775018011512,-500.0,8.739e-05,2]
[419207834,1775018011537,-500.0,8.739e-05,2]
[419207835,1775018011563,-500.0,8.739e-05,2]
[419207836,1775018011590,-500.0,8.739e-05,2]
[419207837,1775018011615,-500.0,8.739e-05,2]
[419207838,1775018011641,-500.0,8.739e-05,2]
[419207839,1775018011666,-500.0,8.739e-05,2]
[419207840,1775018011692,-500.0,8.739e-05,2]
[419207841,1775018011718,-500.0,8.739e-05,2]
[419207842,1775018011744,-500.0,8.739e-05,2]
[419207843,1775018011770,-500.0,8.739e-05,2]
[419207844,1775018011796,-500.0,8.739e-05,2]
[419207845,1775018011822,-474.55748994,8.739e-05,2]
[419207846,1775018011848,-333.40325606,8.739e-05,2]
[419207847,1775018023569,581.26,8.489e-05,2]
[419207848,1775018036922,-166.59674394,8.739e-05,2]
[419207849,1775018036949,-500.0,8.739e-05,2]
[419207850,1775018036977,-500.0,8.739e-05,2]
[419207851,1775018037004,-500.0,8.739e-05,2]
[419207852,1775018037027,-8594.40325606,8.739e-05,2]
[419207853,1775018057759,-198.73780234,8.739e-05,2]
[419207854,1775018057784,-449.72295444,8.739e-05,2]
[419207855,1775018057808,-300.0,8.739e-05,2]
[419207856,1775018057830,-275.0,8.739e-05,2]
[419207857,1775018057852,-500.0,8.739e-05,2]
[419207858,1775018057876,-168.23876057,8.739e-05,2]
[419207859,1775018057900,-500.0,8.739e-05,2]
[419207860,1775018057927,-500.0,8.739e-05,2]
[419207861,1775018057952,-181.68994156,8.739e-05,2]
[419207862,1775018057978,-7557.61054109,8.74e-05,2]
[419207863,1775018074099,-500.0,8.739e-05,2]
[419207864,1775018074126,-500.0,8.739e-05,2]
[419207865,1775018074153,-500.0,8.739e-05,2]
[419207866,1775018074179,-500.0,8.739e-05,2]
[419207867,1775018074205,-500.0,8.739e-05,2]
[419207868,1775018074230,-500.0,8.739e-05,2]
[419207869,1775018074257,-539.06673589,8.739e-05,2]
[419207870,1775018074285,-500.0,8.739e-05,2]
[419207871,1775018074313,-500.0,8.739e-05,2]
[419207872,1775018074338,-500.0,8.739e-05,2]
[419207873,1775018074364,-500.0,8.739e-05,2]
[419207874,1775018074391,-500.0,8.739e-05,2]
[419207875,1775018074416,-500.0,8.739e-05,2]
[419207876,1775018074444,-500.0,8.739e-05,2]
[419207877,1775018074471,-500.0,8.739e-05,2]
[419207878,1775018074506,-500.0,8.739e-05,2]
[419207879,1775018074537,-500.0,8.739e-05,2]
[419207880,1775018074563,-500.0,8.739e-05,2]
[419207881,1775018074599,-226.22456938,8.739e-05,2]
[419207882,1775018074630,-734.70869473,8.74e-05,2]
[419207883,1775018086437,-195.16786773,8.739e-05,2]
[419207884,1775018086460,-219.80328685,8.739e-05,2]
[419207885,1775018086487,-500.0,8.739e-05,2]
[419207886,1775018086514,-85.02884542,8.739e-05,2]
[419207887,1775018126865,-151.0,8.737e-05,2]
[419207888,1775018126888,-99.0,8.737e-05,2]
[419207889,1775018138781,-52.0,8.737e-05,2]
[419207890,1775018138807,-133.6213,8.737e-05,2]
[419207904,1775018621794,165.0,6.536e-05,2]
[419207905,1775018622008,154.0,6.536e-05,2]
[419207906,1775018622244,154.0,6.536e-05,2]
[419207907,1775018622473,154.0,6.536e-05,2]
[419207908,1775018622737,154.0,6.536e-05,2]
[419207909,1775018622956,154.0,6.536e-05,2]
[419207910,1775018623170,154.0,6.536e-05,2]
[419207911,1775018623426,154.0,6.536e-05,2]
[419207912,1775018623657,154.0,6.536e-05,2]
[419207913,1775018623861,154.0,6.536e-05,2]
[419207914,1775018624091,154.0,6.536e-05,2]
[419207915,1775018624303,154.0,6.536e-05,2]
[419207916,1775018624531,154.0,6.536e-05,2]
[419207917,1775018624772,154.0,6.536e-05,2]
[419207918,1775018624997,154.0,6.536e-05,2]
[419207919,1775018625218,154.0,6.536e-05,2]
[419207920,1775018625419,154.0,6.536e-05,2]
[419207921,1775018625916,154.0,6.536e-05,2]
[419207922,1775018626015,154.0,6.536e-05,2]
[419207923,1775018626121,154.0,6.536e-05,2]
[419207924,1775018626341,154.0,6.536e-05,2]
[419207929,1775018707319,150.0,7.866e-05,2]
[419207930,1775018707359,150.0,8.303e-05,2]
[419207931,1775018707403,150.0,7.866e-05,2]
[419207932,1775018707437,150.0,8.157e-05,2]
[419207933,1775018707473,150.0,8.448e-05,2]
[419207934,1775018707616,150.0,7.866e-05,2]
[419207935,1775018710813,265.67834814,7.866e-05,2]
[419207936,1775018714292,150.0,8.041e-05,2]
[419207937,1775018714330,150.0,8.215e-05,2]
[419207938,1775018714373,150.0,7.866e-05,2]
[419207939,1775018714466,150.0,8.565e-05,2]
[419207940,1775018714508,150.0,8.39e-05,2]
[419207941,1775018714663,224.22272223,7.866e-05,2]
[419207942,1775018726971,150.0,7.866e-05,2]
[419207943,1775018727055,150.0,8.157e-05,2]
[419207944,1775018727159,150.0,8.448e-05,2]
[419207945,1775018727252,150.0,7.866e-05,2]
[419207946,1775018727361,150.0,7.866e-05,2]
[419207947,1775018727414,150.0,8.303e-05,2]
[419207948,1775018881491,900.0,7.889e-05,2]
[419207949,1775018881547,647.08,8.471e-05,2]
[419207953,1775018962132,-150.0,8.699e-05,2]
[419207954,1775018962152,-5000.0,8.699e-05,2]
[419207955,1775018962173,-250.0,8.7e-05,2]
[419207956,1775018962196,-5000.0,8.7e-05,2]
[419207957,1775018962219,-5000.0,8.7e-05,2]
[419207958,1775018962239,-3854.12679029,8.7e-05,2]
[419207959,1775018962260,-150.0,8.7e-05,2]
[419207960,1775018962279,-200.0,8.7e-05,2]
[419207961,1775018962298,-300.0,8.7e-05,2]
[419207962,1775018962320,-1200.0,8.7e-05,2]
[419207963,1775018962340,-210.23281965,8.7e-05,2]
[419207964,1775018962359,-29956.29378486,8.7e-05,2]
[419207969,1775019031765,-2781.5039426,8.691e-05,2]
[419207970,1775019031775,-1036.17275574,8.699e-05,2]
[419207971,1775019031785,-274.0,8.699e-05,2]
[419207972,1775019031795,-150.0,8.7e-05,2]
[419207973,1775019031806,-23923.83353385,8.7e-05,2]
[419207974,1775019031816,-250.0,8.7e-05,2]
[419207975,1775019031825,-1000.0,8.7e-05,2]
[419207976,1775019031835,-210.23281963,8.702e-05,2]
[419207977,1775019031845,-210.23281963,8.704e-05,2]
[419207978,1775019031855,-1200.0,8.711e-05,2]
[419207979,1775019031864,-4250.755,8.712e-05,2]
[419207980,1775019031874,-171.422,8.712e-05,2]
[419207981,1775019031885,-235.20456477,8.713e-05,2]
[419207982,1775019031894,-500.0,8.713e-05,2]
[419207983,1775019031904,-503.65819425,8.713e-05,2]
[419207984,1775019031913,-500.0,8.713e-05,2]
[419207985,1775019031922,-500.0,8.713e-05,2]
[419207986,1775019031931,-500.17952239,8.713e-05,2]
[419207987,1775019031941,-16.3787,8.737e-05,2]
[419207988,1775019031950,-151.0,8.737e-05,2]
[419207989,1775019031960,-151.0,8.737e-05,2]
[419207990,1775019031970,-500.0,8.739e-05,2]
[419207991,1775019031979,-150.0,8.739e-05,2]
[419207992,1775019031988,-500.0,8.739e-05,2]
[419207993,1775019031998,-342.80274047,8.739e-05,2]
[419207994,1775019032008,-500.0,8.739e-05,2]
[419207995,1775019032017,-500.0,8.739e-05,2]
[419207996,1775019032027,-500.0,8.739e-05,2]
[419207997,1775019032039,-500.0,8.739e-05,2]
[419207998,1775019032048,-500.0,8.739e-05,2]
[419207999,1775019032058,-500.0,8.739e-05,2]
[419208000,1775019032067,-500.0,8.739e-05,2]
[419208001,1775019032076,-500.0,8.739e-05,2]
[419208002,1775019032088,-500.0,8.739e-05,2]
[419208003,1775019032098,-500.0,8.739e-05,2]
[419208004,1775019032107,-500.0,8.739e-05,2]
[419208005,1775019032116,-500.0,8.739e-05,2]
[419208006,1775019032125,-500.0,8.739e-05,2]
[419208007,1775019032134,-500.0,8.739e-05,2]
[419208008,1775019032143,-500.0,8.739e-05,2]
[419208009,1775019032152,-500.0,8.739e-05,2]
[419208010,1775019032161,-500.0,8.739e-05,2]
[419208011,1775019032170,-500.0,8.739e-05,2]
[419208012,1775019032179,-500.0,8.739e-05,2]
[419208013,1775019032188,-500.0,8.739e-05,2]
[419208014,1775019032197,-342.85685531,8.739e-05,2]
[419208015,1775019032206,-500.0,8.739e-05,2]
[419208016,1775019032215,-500.0,8.739e-05,2]
[419208017,1775019032224,-500.0,8.739e-05,2]
[419208018,1775019032234,-500.0,8.739e-05,2]
[419208019,1775019032244,-500.0,8.739e-05,2]
[419208020,1775019032253,-291.9890272,8.739e-05,2]
[419208021,1775019032262,-500.0,8.739e-05,2]
[419208022,1775019032272,-500.0,8.739e-05,2]
[419208023,1775019032281,-304.67125952,8.739e-05,2]
[419208024,1775019032291,-164.80606811,8.739e-05,2]
[419208025,1775019032301,-150.0,8.739e-05,2]
[419208026,1775019032310,-570.24917565,8.739e-05,2]
[419208027,1775019032320,-500.0,8.739e-05,2]
[419208028,1775019032329,-500.0,8.739e-05,2]
[419208029,1775019032339,-338.35873595,8.739e-05,2]
[419208030,1775019032349,-500.0,8.739e-05,2]
[419208031,1775019032358,-516.45149846,8.739e-05,2]
[419208032,1775019032367,-500.0,8.739e-05,2]
[419208033,1775019032377,-491.38912161,8.739e-05,2]
[419208034,1775019032386,-500.0,8.739e-05,2]
[419208035,1775019032395,-500.0,8.739e-05,2]
[419208036,1775019032405,-219.31813537,8.739e-05,2]
[419208037,1775019032414,-500.0,8.739e-05,2]
[419208038,1775019032424,-500.0,8.739e-05,2]
[419208039,1775019032433,-276.89022998,8.739e-05,2]
[419208040,1775019032443,-500.0,8.739e-05,2]
[419208041,1775019032452,-193.82316098,8.739e-05,2]
[419208042,1775019032461,-500.0,8.739e-05,2]
[419208043,1775019032470,-500.0,8.739e-05,2]
[419208044,1775019032480,-643.495991,8.739e-05,2]
[419208045,1775019032490,-308.59549665,8.739e-05,2]
[419208046,1775019032500,-500.0,8.739e-05,2]
[419208047,1775019032510,-500.0,8.739e-05,2]
[419208048,1775019032520,-500.0,8.739e-05,2]
[419208049,1775019032529,-500.0,8.739e-05,2]
[419208050,1775019032539,-500.0,8.739e-05,2]
[419208051,1775019032548,-500.0,8.739e-05,2]
[419208052,1775019032558,-500.0,8.739e-05,2]
[419208053,1775019032567,-239.5,8.739e-05,2]
[419208054,1775019032577,-500.0,8.739e-05,2]
[419208055,1775019032587,-500.0,8.739e-05,2]
[419208056,1775019032596,-500.0,8.739e-05,2]
[419208057,1775019032606,-418.10210295,8.739e-05,2]
[419208058,1775019032616,-500.0,8.739e-05,2]
[419208059,1775019032625,-500.0,8.739e-05,2]
[419208060,1775019032635,-500.0,8.739e-05,2]
[419208061,1775019032644,-500.0,8.739e-05,2]
[419208062,1775019032653,-500.0,8.739e-05,2]
[419208063,1775019032663,-500.0,8.739e-05,2]
[419208064,1775019032672,-500.0,8.739e-05,2]
[419208065,1775019032682,-546.09648494,8.739e-05,2]
[419208066,1775019032691,-500.0,8.739e-05,2]
[419208067,1775019032700,-500.0,8.739e-05,2]
[419208068,1775019032710,-500.0,8.739e-05,2]
[419208069,1775019032719,-500.0,8.739e-05,2]
[419208070,1775019032728,-500.0,8.739e-05,2]
[419208071,1775019032737,-500.0,8.739e-05,2]
[419208072,1775019032747,-616.62584147,8.739e-05,2]
[419208073,1775019032756,-500.0,8.739e-05,2]
[419208074,1775019032766,-500.0,8.739e-05,2]
[419208075,1775019032775,-500.0,8.739e-05,2]
[419208076,1775019032785,-500.0,8.739e-05,2]
[419208077,1775019032794,-500.0,8.739e-05,2]
[419208078,1775019032804,-500.0,8.739e-05,2]
[419208079,1775019032814,-500.0,8.739e-05,2]
[419208080,1775019032823,-500.0,8.739e-05,2]
[419208081,1775019032834,-500.0,8.739e-05,2]
[419208082,1775019032844,-500.0,8.739e-05,2]
[419208083,1775019032853,-500.0,8.739e-05,2]
[419208084,1775019032863,-500.0,8.739e-05,2]
[419208085,1775019032872,-500.0,8.739e-05,2]
[419208086,1775019032881,-500.0,8.739e-05,2]
[419208087,1775019032890,-500.0,8.739e-05,2]
[419208088,1775019032900,-500.0,8.739e-05,2]
[419208089,1775019032910,-500.0,8.739e-05,2]
[419208090,1775019032919,-500.0,8.739e-05,2]
[419208091,1775019032929,-500.0,8.739e-05,2]
[419208092,1775019032938,-500.0,8.739e-05,2]
[419208093,1775019032947,-500.0,8.739e-05,2]
[419208094,1775019032958,-200.0,8.739e-05,2]
[419208095,1775019032968,-500.0,8.739e-05,2]
[419208096,1775019032978,-500.0,8.739e-05,2]
[419208097,1775019032987,-500.0,8.739e-05,2]
[419208098,1775019032997,-500.0,8.739e-05,2]
[419208099,1775019033007,-500.0,8.739e-05,2]
[419208100,1775019033017,-150.0,8.74e-05,2]
[419208101,1775019033026,-150.0,8.74e-05,2]
[419208102,1775019033036,-150.0,8.74e-05,2]
[419208103,1775019033046,-150.0,8.74e-05,2]
[419208104,1775019033056,-150.0,8.74e-05,2]
[419208105,1775019033067,-150.69192865,8.74e-05,2]
[419208106,1775019033077,-150.0,8.74e-05,2]
[419208107,1775019033088,-1218502.46444555,8.74e-05,2]
[419208137,1775019036103,20357.69892963,8.6e-05,2]
[419208141,1775019037878,-2479642.30107037,8.6e-05,2]
[419208142,1775019037888,-150.0,8.74e-05,2]
[419208143,1775019037898,-3277.23,8.797e-05,2]
[419208144,1775019037908,-150.0,8.797e-05,2]
[419208145,1775019037919,-500.0,8.84e-05,2]
[419208146,1775019037930,-239.5,9.013e-05,2]
[419208147,1775019037941,-200.0,9.035e-05,2]
[419208148,1775019037952,-1852.42,9.035e-05,2]
[419208149,1775019037962,-535.71,9.035e-05,2]
[419208150,1775019037972,-1719.55,9.035e-05,2]
[419208151,1775019037983,-3277.23,9.035e-05,2]
[419208152,1775019037992,-1550.0,9.201e-05,2]
[419208153,1775019038001,-450.02657587,9.201e-05,2]
[419208154,1775019038011,-1102.45109965,9.261e-05,2]
[419208155,1775019038020,-501.12506457,9.261e-05,2]
[419208156,1775019038031,-383.0,9.286e-05,2]
[419208157,1775019038041,-239.5,9.287e-05,2]
[419208158,1775019038052,-1020.08,9.303e-05,2]
[419208159,1775019038062,-1161.0,9.309e-05,2]
[419208160,1775019038071,-1339.0,9.327e-05,2]
[419208161,1775019038081,-250.0,9.56e-05,2]
[419208162,1775019038091,-239.5,9.561e-05,2]
[419208163,1775019038101,-250.0,9.569e-05,2]
[419208164,1775019038111,-5000.0,9.569e-05,2]
[419208165,1775019038120,-255.0,9.569e-05,2]
[419208166,1775019038130,-1680.0,9.582e-05,2]
[419208167,1775019038140,-495.05098604,9.741e-05,2]
[419208168,1775019038150,-239.54,9.835e-05,2]
[419208169,1775019038159,-1024.24998606,0.0001,2]
[419208170,1775019038168,-151.0,0.0001,2]
[419208171,1775019038178,-151.0,0.0001,2]
[419208172,1775019038187,-151.0,0.0001,2]
[419208173,1775019038196,-151.0,0.0001,2]
[419208174,1775019038205,-151.0,0.0001,2]
[419208175,1775019038214,-151.0,0.0001,2]
[419208176,1775019038223,-151.0,0.0001,2]
[419208177,1775019038233,-151.0,0.0001,2]
[419208178,1775019038242,-1289.58892491,0.0001,2]
[419208179,1775019038252,-151.0,0.0001,2]
[419208180,1775019038261,-151.0,0.0001,2]
[419208181,1775019038270,-297.92469906,0.0001,2]
[419208182,1775019038279,-200.0,0.0001,2]
[419208183,1775019038288,-151.88410035,0.0001,2]
[419208184,1775019038298,-182.05547606,0.0001,2]
[419208186,1775019038308,-227.0,0.00010052,2]
[419208188,1775019038317,-192.8494,0.000101,7]
[419208189,1775019038326,-1007.0,0.00010243,2]
[419208191,1775019038335,-1044.0,0.00010264,2]
[419208193,1775019038345,-433.0,0.00010526,2]
[419208196,1775019038355,-2351.0,0.0001054,2]
[419208197,1775019038364,-1337.30371513,0.00010548,2]
[419208198,1775019038373,-200.0,0.00010548,2]
[419208199,1775019038383,-192.713262,0.00010656,2]
[419208200,1775019038392,-500.0,0.00010959,2]
[419208201,1775019038402,-150.0,0.00010959,2]
[419208202,1775019038411,-150.0,0.00010959,2]
[419208204,1775019038420,-1386.78395259,0.00011096,2]
[419208206,1775019038429,-200.0,0.00011096,2]
[419208208,1775019038439,-20448.05043977,0.00011099,2]
[419208210,1775019038448,-22076.0661051,0.00011099,2]
[419208212,1775019038458,-9999.99,0.00011281,2]
[419208214,1775019038467,-14051.11,0.00011281,2]
[419208216,1775019038476,-600.0,0.0001136,2]
[419208218,1775019038486,-259.08,0.00011404,2]
[419208220,1775019038496,-250.35650714,0.00011484,2]
[419208222,1775019038506,-247.9395,0.000115,12]
[419208224,1775019038515,-3143.85,0.00011507,2]
[419208226,1775019038524,-2580.77438772,0.0001152,2]
[419208228,1775019038534,-736.0,0.00011578,2]
[419208230,1775019038543,-3292.0,0.00011594,2]
[419208232,1775019038553,-22076.06610508,0.00011597,2]
[419208234,1775019038563,-500.0,0.0001162,2]
[419208236,1775019038572,-500.0,0.0001162,2]
[419208238,1775019038582,-500.0,0.0001162,2]
[419208240,1775019038591,-500.0,0.0001162,2]
[419208242,1775019038600,-500.0,0.0001162,2]
[419208244,1775019038610,-500.0,0.0001162,2]
[419208246,1775019038619,-500.0,0.0001162,2]
[419208248,1775019038628,-500.0,0.0001162,2]
[419208250,1775019038638,-500.0,0.0001162,2]
[419208252,1775019038647,-500.0,0.0001162,2]
[419208254,1775019038657,-500.0,0.0001162,2]
[419208256,1775019038666,-464.09246551,0.0001162,2]
[419208258,1775019038675,-150.0,0.0001162,2]
[419208260,1775019038684,-150.0,0.0001162,2]
[419208262,1775019038693,-150.0,0.0001162,2]
[419208264,1775019038702,-150.0,0.0001162,2]
[419208266,1775019038711,-150.0,0.0001162,2]
[419208268,1775019038720,-167.71767923,0.0001162,2]
[419208270,1775019038729,-500.0,0.0001162,2]
[419208271,1775019038738,-500.0,0.0001162,2]
[419208273,1775019038747,-500.0,0.0001162,2]
[419208275,1775019038756,-500.0,0.0001162,2]
[419208277,1775019038765,-500.0,0.0001162,2]
[419208279,1775019038774,-500.0,0.0001162,2]
[419208280,1775019038783,-983.18256457,0.00011644,2]
[419208281,1775019038792,-200.0,0.00011644,2]
[419208282,1775019038801,-20448.05043972,0.00011644,2]
[419208283,1775019038811,-208.87794102,0.00011987,2]
[419208284,1775019038820,-517.93,0.00012087,2]
[419208285,1775019038829,-9999.99,0.00012087,2]
[419208286,1775019038838,-9999.99,0.00012087,2]
[419208287,1775019038848,-9999.99,0.00012087,2]
[419208288,1775019038858,-4154.72,0.00012087,2]
[419208289,1775019038867,-299.99,0.00012087,2]
[419208290,1775019038877,-150.99,0.00012087,2]
[419208291,1775019038886,-200.0,0.00012192,2]
[419208292,1775019038896,-1252.0,0.00012735,2]
[419208293,1775019038905,-200.0,0.0001274,2]
[419208294,1775019038915,-4609.0,0.00012754,2]
[419208295,1775019038924,-301.43014198,0.00012987,2]
[419208296,1775019038933,-318.7667,0.00013,17]
[419208297,1775019038943,-1006.64,0.00013151,2]
[419208298,1775019038952,-872.83550786,0.0001326,2]
[419208299,1775019038962,-371.84323918,0.0001326,2]
[419208300,1775019038971,-201.94886624,0.00013288,2]
[419208301,1775019038980,-500.0,0.00013698,2]
[419208302,1775019038989,-490.0,0.00013698,2]
[419208303,1775019038998,-435.19266158,0.00013698,2]
[419208304,1775019039008,-586.09491028,0.00013698,2]
[419208305,1775019039017,-500.0,0.00013698,2]
[419208306,1775019039026,-500.0,0.00013698,2]
[419208307,1775019039036,-500.0,0.00013698,2]
[419208308,1775019039045,-500.0,0.00013698,2]
[419208309,1775019039054,-500.0,0.00013698,2]
[419208310,1775019039063,-500.0,0.00013698,2]
[419208311,1775019039071,-500.0,0.00013698,2]
[419208312,1775019039080,-500.0,0.00013698,2]
[419208313,1775019039089,-500.0,0.00013698,2]
[419208314,1775019039098,-500.0,0.00013698,2]
[419208315,1775019039107,-500.0,0.00013698,2]
[419208316,1775019039116,-618.03329484,0.00013698,2]
[419208317,1775019039125,-500.0,0.00013698,2]
[419208318,1775019039134,-383.56993294,0.00013698,2]
[419208319,1775019039143,-500.0,0.00013698,2]
[419208320,1775019039152,-500.0,0.00013698,2]
[419208321,1775019039161,-500.0,0.00013698,2]
[419208322,1775019039171,-500.0,0.00013698,2]
[419208323,1775019039181,-500.0,0.00013698,2]
[419208324,1775019039190,-500.0,0.00013698,2]
[419208325,1775019039200,-500.0,0.00013698,2]
[419208326,1775019039209,-500.0,0.00013698,2]
[419208327,1775019039219,-500.0,0.00013698,2]
[419208328,1775019039228,-500.0,0.00013698,2]
[419208329,1775019039238,-500.0,0.00013698,2]
[419208330,1775019039247,-500.0,0.00013698,2]
[419208331,1775019039256,-500.0,0.00013698,2]
[419208332,1775019039265,-355.31007383,0.00013698,2]
[419208333,1775019039275,-500.0,0.00013698,2]
[419208334,1775019039284,-500.0,0.00013698,2]
[419208335,1775019039294,-500.0,0.00013698,2]
[419208336,1775019039303,-500.0,0.00013698,2]
[419208337,1775019039312,-500.0,0.00013698,2]
[419208338,1775019039321,-500.0,0.00013698,2]
[419208339,1775019039331,-500.0,0.00013698,2]
[419208340,1775019039340,-435.57567252,0.00013698,2]
[419208341,1775019039349,-500.0,0.00013698,2]
[419208342,1775019039359,-500.0,0.00013698,2]
[419208343,1775019039368,-500.0,0.00013698,2]
[419208344,1775019039378,-500.0,0.00013698,2]
[419208345,1775019039387,-500.0,0.00013698,2]
[419208346,1775019039396,-500.0,0.00013698,2]
[419208347,1775019039405,-500.0,0.00013698,2]
[419208348,1775019039414,-539.48062383,0.00013698,2]
[419208349,1775019039423,-500.0,0.00013698,2]
[419208350,1775019039433,-500.0,0.00013698,2]
[419208351,1775019039442,-540.78906624,0.00013698,2]
[419208352,1775019039452,-500.0,0.00013698,2]
[419208353,1775019039461,-500.0,0.00013698,2]
[419208354,1775019039471,-500.0,0.00013698,2]
[419208355,1775019039480,-500.0,0.00013698,2]
[419208356,1775019039490,-500.0,0.00013698,2]
[419208357,1775019039499,-500.0,0.00013698,2]
[419208358,1775019039509,-500.0,0.00013698,2]
[419208359,1775019039518,-500.0,0.00013698,2]
[419208360,1775019039528,-500.0,0.00013698,2]
[419208361,1775019039537,-500.0,0.00013698,2]
[419208362,1775019039546,-500.0,0.00013698,2]
[419208363,1775019039556,-500.0,0.00013698,2]
[419208364,1775019039565,-500.0,0.00013698,2]
[419208365,1775019039575,-500.0,0.00013698,2]
[419208366,1775019039583,-282.94727502,0.00013698,2]
[419208367,1775019039593,-500.0,0.00013698,2]
[419208368,1775019039602,-500.0,0.00013698,2]
[419208369,1775019039611,-500.0,0.00013698,2]
[419208370,1775019039620,-500.0,0.00013698,2]
[419208371,1775019039629,-500.0,0.00013698,2]
[419208372,1775019039639,-500.0,0.00013698,2]
[419208373,1775019039648,-500.0,0.00013698,2]
[419208374,1775019039658,-500.0,0.00013698,2]
[419208375,1775019039668,-500.0,0.00013698,2]
[419208376,1775019039677,-500.0,0.00013698,2]
[419208377,1775019039686,-500.0,0.00013698,2]
[419208378,1775019039695,-500.0,0.00013698,2]
[419208379,1775019039704,-500.0,0.00013698,2]
[419208380,1775019039713,-500.0,0.00013698,2]
[419208381,1775019039722,-500.0,0.00013698,2]
[419208382,1775019039731,-500.0,0.00013698,2]
[419208383,1775019039741,-500.0,0.00013698,2]
[419208384,1775019039750,-500.0,0.00013698,2]
[419208385,1775019039759,-500.0,0.00013698,2]
[419208386,1775019039768,-500.0,0.00013698,2]
[419208387,1775019039778,-500.0,0.00013698,2]
[419208388,1775019039787,-500.0,0.00013698,2]
[419208389,1775019039796,-500.0,0.00013698,2]
[419208390,1775019039805,-500.0,0.00013698,2]
[419208391,1775019039814,-618.97757306,0.00013698,2]
[419208392,1775019039823,-500.0,0.00013698,2]
[419208393,1775019039832,-500.0,0.00013698,2]
[419208394,1775019039841,-500.0,0.00013698,2]
[419208395,1775019039850,-500.0,0.00013698,2]
[419208396,1775019039859,-500.0,0.00013698,2]
[419208397,1775019039869,-500.0,0.00013698,2]
[419208398,1775019039878,-500.0,0.00013698,2]
[419208399,1775019039887,-500.0,0.00013698,2]
[419208400,1775019039896,-500.0,0.00013698,2]
[419208401,1775019039905,-500.0,0.00013698,2]
[419208402,1775019039914,-500.0,0.00013698,2]
[419208403,1775019039924,-500.0,0.00013698,2]
[419208404,1775019039932,-495.13,0.00013698,2]
[419208405,1775019039942,-500.0,0.00013698,2]
[419208406,1775019039951,-500.0,0.00013698,2]
[419208407,1775019039960,-500.0,0.00013698,2]
[419208408,1775019039969,-500.0,0.00013698,2]
[419208409,1775019039978,-500.0,0.00013698,2]
[419208410,1775019039987,-500.0,0.00013698,2]
[419208411,1775019039996,-500.0,0.00013698,2]
[419208412,1775019040005,-500.0,0.00013698,2]
[419208413,1775019040014,-500.0,0.00013698,2]
[419208414,1775019040023,-500.0,0.00013698,2]
[419208415,1775019040034,-508.08439173,0.00013698,2]
[419208416,1775019040043,-500.0,0.00013698,2]
[419208417,1775019040053,-500.0,0.00013698,2]